[Event "CCT Julius Baer-D3 2024"]
[Site "Online"]
[Date "2024.09.27"]
[Round "1.1"]
[White "Micki-taryan"]
[Black "Caruana, Fabiano"]
[Result "1-0"]
[ECO "D44"]
[WhiteElo "2642"]
[BlackElo "2754"]
[Annotator "TA"]
[PlyCount "89"]
[EventDate "2024.09.25"]
[EventType "swiss"]
[EventCountry "NET"]
[SourceTitle "playchess.com"]
[Source "ChessBase"]
[SourceQuality "1"]
[TimeControl "600+2"]

{[%evp 10,89,0,0,6,7,2,0,0,0,0,0,24,4,24,22,51,39,43,43,49,50,67,14,27,27,47,44,68,66,33,37,91,85,115,94,96,114,113,82,141,138,131,93,114,102,110,104,100,98,287,276,283,289,301,302,268,281,303,298,292,288,272,229,202,188,193,196,303,302,306,306,305,283,270,271,256,256,637,637,6095,5763]} 1. d4 {[%emt 0:00:04]} Nf6 {[%emt 0:00:04]} 2. c4 {[%emt 0:00:07]} e6 {[%emt 0:00:01]} 3. Nf3 {[%emt 0:00:02]} d5 {[%emt 0:00:00]} 4. Nc3 {[%emt 0:00:01]} c6 {[%emt 0:00:01]} 5. Bg5 {[%emt 0:00:03]} dxc4 {[%emt 0:00:02]} 6. a4 {[%emt 0:00:09]} c5 {[%emt 0:00:04]} 7. e4 {[%emt 0:00:28]} cxd4 {[%emt 0:00:03]} 8. Qxd4 {[%emt 0:00:10]} Qxd4 {[%emt 0:00:08] The position is equal.} 9. Nxd4 {[%emt 0:00:00]} a6 {[%emt 0:00:05] Against Ndb5} 10. Bxc4 {[%emt 0:00:16]} Bb4 {[%emt 0:00:58][%cal Bf8b4,Bb4a5,Ba5c7,Bc7d6,Bd6e7][%mdl 32]} 11. f3 {[%emt 0:00:08]} Nbd7 {[%emt 0:00:01]} 12. Nc2 {[%emt 0:01:06]} Ba5 {[%emt 0:01:08]} 13. Be3 {[%emt 0:00:20]} Ne5 {[%emt 0:00:09]} 14. Be2 {[%emt 0:00:01]} Bd7 {[%emt 0:00:13]} 15. b4 {[%emt 0:00:15]} Bc7 {[%emt 0:00:09]} 16. O-O {[%emt 0:00:17]} (16. O-O-O $14) 16... Rc8 $11 {[%emt 0:00:10]} 17. Rfc1 {[%emt 0:00:35]} Bd6 {[%emt 0:00:09]} 18. Nd1 {[%emt 0:00:01][%cal Bc3d1,Bd1b2,Bb2d3,Bd3c5][%mdl 32]} Nc4 {[%emt 0:00:22]} 19. Bxc4 {[%emt 0:00:14]} Rxc4 {[%emt 0:00:00]} 20. Nb2 {[%emt 0:00:01]} Rc8 {[%emt 0:00:13]} (20... Rc6 $14) 21. Nd3 $1 $16 {[%emt 0:00:02]} Be7 {[%emt 0:00:48]} 22. Nc5 {[%emt 0:00:02]} Rc7 {[%emt 0:01:11]} 23. Na3 {[%emt 0:00:36]} O-O {[%emt 0:01:46]} 24. Nc4 {[%emt 0:00:15]} Rd8 {[%emt 0:00:10]} (24... Re8 $142) 25. Na5 {[%emt 0:01:07] White is more active.} Bxc5 {[%emt 0:01:16]} 26. bxc5 {[%emt 0:00:33]} ({Resist} 26. Bxc5 $6 b5 $14) 26... e5 {[%emt 0:00:21] [#] Repels Bf4} 27. c6 $1 {[%emt 0:00:04][%mdl 512]} Rxc6 {[%emt 0:00:02]} (27... Bxc6 $2 {loses.} 28. Bb6 Rdd7 29. Bxc7 Rxc7 30. Nxb7 $18 (30. Nxc6 bxc6 31. Rc5 Nd7 $18)) 28. Nxc6 {[%emt 0:00:06]} Bxc6 {[%emt 0:00:01]} 29. a5 {[%emt 0:00:05]} Nd7 $2 {[%emt 0:00:18] [#] A mistake that costs the game.} (29... Ne8 $16 30. Rd1 Rc8) 30. Rxc6 $1 $18 {[%emt 0:00:11][%mdl 512]} bxc6 {[%emt 0:00:02][%mdl 4096] Endgame. [#] KRB-KRN} 31. Rd1 $1 {[%emt 0:00:01]} Kf8 {[%emt 0:00:04]} 32. Bb6 {[%emt 0:00:02]} Ke7 {[%emt 0:00:00] And now ...Nxb6 would win.} 33. Bxd8+ {[%emt 0:00:06]} Kxd8 {[%emt 0:00:00] KR-KN} 34. Kf2 {[%emt 0:00:09]} Kc7 {[%emt 0:00:02]} 35. Ke3 {[%emt 0:00:04]} Nc5 {[%emt 0:00:10]} 36. Rb1 {[%emt 0:00:01] Against Nb3} Nb7 {[%emt 0:00:19]} 37. Rb6 {[%emt 0:00:03]} Nxa5 {[%emt 0:00:01]} 38. Rxa6 {[%emt 0:00:01]} Nb7 {[%emt 0:00:02]} (38... Nc4+ {might work better.} 39. Ke2 Kb7) 39. Ra8 {[%emt 0:00:03]} Nd8 {[%emt 0:00:02]} 40. h4 {[%emt 0:00:06]} Kd7 {[%emt 0:00:05]} 41. Ra7+ {[%emt 0:00:06]} Ke6 {[%emt 0:00:10]} 42. g3 {[%emt 0:00:19][%cal Bg2g3,Bg3g4,Bg4g5][%mdl 32]} g6 {[%emt 0:00:02]} 43. g4 {[%emt 0:00:20] Threatens to win with g5.} h5 $2 {[%emt 0:00:08]} (43... h6 44. Kd3 Kf6) 44. g5 {[%emt 0:00:11]} f6 {[%emt 0:00:07]} 45. Rg7 {[%emt 0:00:05] Weighted Error Value: White=0.07 (flawless) /Black=0.28 (precise) .  Loses game:     	---       	Black=1      Mistake:       	White=1     	Black=4      Inaccurate:     	---       	Black=3      OK:         	White=17    	Black=9      Best:        	White=1     	Black=3      Strong:       	White=2     	---        Brilliant:      	White=1     	---} 1-0

[Event "CCT Julius Baer-D3 2024"]
[Site "Online"]
[Date "2024.09.27"]
[Round "1.1"]
[White "Guseinov, Gadir"]
[Black "Bharath Subramaniyam H"]
[Result "1/2-1/2"]
[ECO "C67"]
[WhiteElo "2636"]
[BlackElo "2561"]
[Annotator "ChessBase"]
[PlyCount "94"]
[EventDate "2024.09.25"]
[EventType "swiss"]
[EventCountry "NET"]
[SourceTitle "playchess.com"]
[Source "ChessBase"]
[SourceQuality "1"]
[TimeControl "600+2"]

1. e4 {[%emt 0:00:05]} e5 {[%emt 0:00:04]} 2. Nf3 {[%emt 0:00:03]} Nc6 {[%emt 0:00:01]} 3. Bb5 {[%emt 0:00:01]} Nf6 {[%emt 0:00:02]} 4. O-O {[%emt 0:00:04]} Nxe4 {[%emt 0:00:01]} 5. Re1 {[%emt 0:00:28]} Nd6 {[%emt 0:00:02]} 6. Nxe5 {[%emt 0:00:01]} Be7 {[%emt 0:00:01]} 7. Bf1 {[%emt 0:00:01]} Nxe5 {[%emt 0:00:02]} 8. Rxe5 {[%emt 0:00:01]} O-O {[%emt 0:00:00]} 9. d4 {[%emt 0:00:00]} Bf6 {[%emt 0:00:02]} 10. Re1 {[%emt 0:00:02]} Re8 {[%emt 0:00:05]} 11. Bf4 {[%emt 0:00:11]} Rxe1 {[%emt 0:00:58]} 12. Qxe1 {[%emt 0:00:03]} Ne8 {[%emt 0:01:09]} 13. c3 {[%emt 0:00:07]} d5 {[%emt 0:00:07]} 14. Bd3 {[%emt 0:00:06]} g6 {[%emt 0:00:32]} 15. a4 {[%emt 0:00:13]} Ng7 {[%emt 0:00:12]} 16. a5 {[%emt 0:00:17]} Bf5 {[%emt 0:00:07]} 17. Bxf5 {[%emt 0:00:05]} Nxf5 {[%emt 0:00:00]} 18. Nd2 {[%emt 0:00:00]} Qd7 {[%emt 0:00:05]} 19. Qe2 {[%emt 0:00:01]} Re8 {[%emt 0:00:05]} 20. Qd3 {[%emt 0:00:01]} c6 {[%emt 0:00:45]} 21. a6 {[%emt 0:00:53]} b6 {[%emt 0:00:03]} 22. Nf3 {[%emt 0:00:44]} Nd6 {[%emt 0:00:33]} 23. Be5 {[%emt 0:00:30]} Bg7 {[%emt 0:00:58]} 24. Re1 {[%emt 0:00:27]} Nc4 {[%emt 0:00:13]} 25. Bxg7 {[%emt 0:00:34]} Rxe1+ {[%emt 0:00:03]} 26. Nxe1 {[%emt 0:00:01]} Kxg7 {[%emt 0:00:00]} 27. Qe2 {[%emt 0:00:38]} Qc8 {[%emt 0:00:59]} 28. g3 {[%emt 0:00:44]} Kf8 {[%emt 0:00:21]} 29. Kg2 {[%emt 0:00:29]} Qe8 {[%emt 0:00:10]} 30. Qxe8+ {[%emt 0:00:08]} Kxe8 {[%emt 0:00:00]} 31. Nd3 {[%emt 0:00:01]} f6 {[%emt 0:00:04]} 32. h4 {[%emt 0:00:13]} Nd6 {[%emt 0:00:10]} 33. g4 {[%emt 0:00:16]} Nb5 {[%emt 0:00:39]} 34. g5 {[%emt 0:00:03]} fxg5 {[%emt 0:00:02]} 35. hxg5 {[%emt 0:00:00]} Nc7 {[%emt 0:00:03]} 36. Ne5 {[%emt 0:00:04]} c5 {[%emt 0:00:01]} 37. Nc6 {[%emt 0:01:35]} Nxa6 {[%emt 0:00:03]} 38. Nxa7 {[%emt 0:00:01]} Kd7 {[%emt 0:00:37]} 39. Nb5 {[%emt 0:00:26]} cxd4 {[%emt 0:00:40]} 40. cxd4 {[%emt 0:00:25]} Nb4 {[%emt 0:00:16]} 41. Kf3 {[%emt 0:00:32]} Nd3 {[%emt 0:00:08]} 42. b3 {[%emt 0:00:02]} Nc1 {[%emt 0:00:05]} 43. Kf4 {[%emt 0:00:00]} Kc6 {[%emt 0:00:28]} 44. Na7+ {[%emt 0:00:13]} Kd6 {[%emt 0:00:05]} 45. Nb5+ {[%emt 0:00:01]} Kc6 {[%emt 0:00:05]} 46. Na7+ {[%emt 0:00:00]} Kd6 {[%emt 0:00:14]} 47. Nb5+ {[%emt 0:00:02]} Kc6 {[%emt 0:00:00]} 1/2-1/2

[Event "CCT Julius Baer-D3 2024"]
[Site "Online"]
[Date "2024.09.27"]
[Round "1.1"]
[White "Bosiocic"]
[Black "Svane, Rasmus"]
[Result "0-1"]
[ECO "C65"]
[WhiteElo "2631"]
[BlackElo "2628"]
[Annotator "ChessBase"]
[PlyCount "104"]
[EventDate "2024.09.25"]
[EventType "swiss"]
[EventCountry "NET"]
[SourceTitle "playchess.com"]
[Source "ChessBase"]
[SourceQuality "1"]
[TimeControl "600+2"]

1. e4 {[%emt 0:00:02]} e5 {[%emt 0:00:08]} 2. Nf3 {[%emt 0:00:02]} Nc6 {[%emt 0:00:02]} 3. Bb5 {[%emt 0:00:02]} Nf6 {[%emt 0:00:07]} 4. d3 {[%emt 0:00:01]} Bc5 {[%emt 0:00:02]} 5. Bg5 {[%emt 0:00:01]} h6 {[%emt 0:00:09]} 6. Bh4 {[%emt 0:00:02]} O-O {[%emt 0:01:31]} 7. O-O {[%emt 0:00:30]} Be7 {[%emt 0:00:49]} 8. Nbd2 {[%emt 0:00:20]} d6 {[%emt 0:00:07]} 9. c3 {[%emt 0:00:05]} Nh5 {[%emt 0:01:03]} 10. Bg3 {[%emt 0:00:02]} Nb8 {[%emt 0:00:16]} 11. d4 {[%emt 0:00:12]} c6 {[%emt 0:00:05]} 12. Bd3 {[%emt 0:00:15]} Nxg3 {[%emt 0:00:08]} 13. hxg3 {[%emt 0:00:02]} Bf6 {[%emt 0:00:16]} 14. dxe5 {[%emt 0:01:04]} dxe5 {[%emt 0:00:02]} 15. Nc4 {[%emt 0:00:01]} Qc7 {[%emt 0:00:25]} 16. b4 {[%emt 0:00:02]} b5 {[%emt 0:00:33]} 17. Ne3 {[%emt 0:00:02]} a5 {[%emt 0:00:01]} 18. a4 {[%emt 0:00:07]} axb4 {[%emt 0:00:04]} 19. cxb4 {[%emt 0:00:04]} bxa4 {[%emt 0:00:01]} 20. Rxa4 {[%emt 0:00:02]} Rxa4 {[%emt 0:00:03]} 21. Qxa4 {[%emt 0:00:02]} Rd8 {[%emt 0:00:20]} 22. Be2 {[%emt 0:00:07]} Be6 {[%emt 0:00:48]} 23. Rc1 {[%emt 0:00:03]} Qb7 {[%emt 0:00:14]} 24. Nc4 {[%emt 0:00:21]} Bxc4 {[%emt 0:00:26]} 25. Bxc4 {[%emt 0:00:02]} g6 {[%emt 0:00:01]} 26. Bb3 {[%emt 0:01:13]} Kg7 {[%emt 0:00:07]} 27. Qa5 {[%emt 0:00:02]} Qe7 {[%emt 0:00:53]} 28. Rc5 {[%emt 0:00:03]} Rd7 {[%emt 0:00:23]} 29. Qa1 {[%emt 0:01:02]} Rb7 {[%emt 0:00:18]} 30. Qc3 {[%emt 0:00:46]} Rxb4 {[%emt 0:00:22]} 31. Nd2 {[%emt 0:01:02]} Rb5 {[%emt 0:00:18]} 32. Rc4 {[%emt 0:00:05]} c5 {[%emt 0:00:02]} 33. Ba4 {[%emt 0:00:16]} Rb4 {[%emt 0:00:02]} 34. Nf1 {[%emt 0:00:05]} Rxc4 {[%emt 0:00:04]} 35. Qxc4 {[%emt 0:00:01]} Bg5 {[%emt 0:00:02]} 36. Qd5 {[%emt 0:00:10]} Na6 {[%emt 0:00:05]} 37. Bb5 {[%emt 0:00:07]} Nc7 {[%emt 0:00:01]} 38. Qc4 {[%emt 0:00:01]} Nxb5 {[%emt 0:00:07]} 39. Qxb5 {[%emt 0:00:01]} Qd6 {[%emt 0:00:00]} 40. Qb1 {[%emt 0:00:28]} c4 {[%emt 0:00:03]} 41. Nh2 {[%emt 0:00:08]} Qd4 {[%emt 0:00:30]} 42. Nf3 {[%emt 0:00:06]} Qc3 {[%emt 0:00:00]} 43. Qb5 {[%emt 0:00:11]} Bf6 {[%emt 0:00:03]} 44. Qc5 {[%emt 0:00:41]} Qc1+ {[%emt 0:00:09]} 45. Kh2 {[%emt 0:00:01]} c3 {[%emt 0:00:01]} 46. Nxe5 {[%emt 0:00:16]} Qg5 {[%emt 0:00:02]} 47. f4 {[%emt 0:00:01]} Qh5+ {[%emt 0:00:01]} 48. Kg1 {[%emt 0:00:01]} Bxe5 {[%emt 0:00:06]} 49. fxe5 {[%emt 0:00:02]} Qd1+ {[%emt 0:00:01]} 50. Kh2 {[%emt 0:00:01]} c2 {[%emt 0:00:04]} 51. e6 {[%emt 0:00:03]} c1=Q {[%emt 0:00:03]} 52. Qe5+ {[%emt 0:00:02]} f6 {[%emt 0:00:02]} 0-1

[Event "CCT Julius Baer-D3 2024"]
[Site "Online"]
[Date "2024.09.27"]
[Round "1.1"]
[White "Kamsky, Gata"]
[Black "Esipenko, Andrey"]
[Result "1/2-1/2"]
[ECO "C91"]
[WhiteElo "2629"]
[BlackElo "2701"]
[Annotator "ChessBase"]
[PlyCount "75"]
[EventDate "2024.09.25"]
[EventType "swiss"]
[EventCountry "NET"]
[SourceTitle "playchess.com"]
[Source "ChessBase"]
[SourceQuality "1"]
[TimeControl "600+2"]

1. e4 {[%emt 0:00:06]} e5 {[%emt 0:00:05]} 2. Nf3 {[%emt 0:00:01]} Nc6 {[%emt 0:00:01]} 3. Bb5 {[%emt 0:00:02]} a6 {[%emt 0:00:03]} 4. Ba4 {[%emt 0:00:01]} Nf6 {[%emt 0:00:01]} 5. O-O {[%emt 0:00:01]} Be7 {[%emt 0:00:02]} 6. Re1 {[%emt 0:00:01]} b5 {[%emt 0:00:01]} 7. Bb3 {[%emt 0:00:01]} O-O {[%emt 0:00:01]} 8. c3 {[%emt 0:00:09]} d6 {[%emt 0:00:59]} 9. d4 {[%emt 0:00:05]} Bg4 {[%emt 0:00:06]} 10. d5 {[%emt 0:00:01]} Na5 {[%emt 0:00:14]} 11. Bc2 {[%emt 0:00:02]} c6 {[%emt 0:00:05]} 12. h3 {[%emt 0:00:01]} Bxf3 {[%emt 0:02:06]} 13. Qxf3 {[%emt 0:00:04]} cxd5 {[%emt 0:00:03]} 14. exd5 {[%emt 0:00:02]} Nd7 {[%emt 0:00:04]} 15. a4 {[%emt 0:00:49]} Qc7 {[%emt 0:01:40]} 16. axb5 {[%emt 0:01:03]} axb5 {[%emt 0:00:00]} 17. Na3 {[%emt 0:00:37]} Nc4 {[%emt 0:00:12]} 18. Nxb5 {[%emt 0:02:20]} Qc5 {[%emt 0:00:06]} 19. Rxa8 {[%emt 0:00:15]} Rxa8 {[%emt 0:00:00]} 20. Na3 {[%emt 0:00:36]} Nxa3 {[%emt 0:00:13]} 21. bxa3 {[%emt 0:00:01]} g6 {[%emt 0:00:15]} 22. g4 {[%emt 0:00:13]} Nb6 {[%emt 0:00:21]} 23. Rd1 {[%emt 0:00:36]} Na4 {[%emt 0:00:30]} 24. Bxa4 {[%emt 0:00:17]} Rxa4 {[%emt 0:00:03]} 25. Kg2 {[%emt 0:00:06]} Qc4 {[%emt 0:00:17]} 26. Bh6 {[%emt 0:00:08]} Rxa3 {[%emt 0:00:56]} 27. Rb1 {[%emt 0:00:03]} Qc8 {[%emt 0:00:01]} 28. Rb6 {[%emt 0:00:10]} Ra8 {[%emt 0:00:08]} 29. Qd3 {[%emt 0:00:10]} Bf8 {[%emt 0:00:06]} 30. Bxf8 {[%emt 0:00:15]} Qxf8 {[%emt 0:00:00]} 31. c4 {[%emt 0:00:14]} Qe7 {[%emt 0:00:09]} 32. c5 {[%emt 0:00:09]} dxc5 {[%emt 0:00:06]} 33. Rc6 {[%emt 0:00:10]} e4 {[%emt 0:00:48]} 34. Qe3 {[%emt 0:00:04]} Qe5 {[%emt 0:00:17]} 35. Qxc5 {[%emt 0:00:08]} e3 {[%emt 0:00:02]} 36. Qxe3 {[%emt 0:00:02]} Qxd5+ {[%emt 0:00:01]} 37. Qf3 {[%emt 0:00:01]} Qxf3+ {[%emt 0:00:00]} 38. Kxf3 {[%emt 0:00:01]} 1/2-1/2

[Event "CCT Julius Baer-D3 2024"]
[Site "Online"]
[Date "2024.09.27"]
[Round "1.1"]
[White "Rud_Makarian"]
[Black "Chopper"]
[Result "0-1"]
[ECO "A09"]
[WhiteElo "2624"]
[BlackElo "2604"]
[Annotator "ChessBase"]
[PlyCount "64"]
[EventDate "2024.09.25"]
[EventType "swiss"]
[EventCountry "NET"]
[SourceTitle "playchess.com"]
[Source "ChessBase"]
[SourceQuality "1"]
[TimeControl "600+2"]

1. Nf3 {[%emt 0:00:02]} d5 {[%emt 0:00:04]} 2. g3 {[%emt 0:00:01]} g6 {[%emt 0:00:01]} 3. c4 {[%emt 0:00:02]} dxc4 {[%emt 0:00:04]} 4. Na3 {[%emt 0:00:02]} Bg7 {[%emt 0:00:05]} 5. Nxc4 {[%emt 0:00:01]} c5 {[%emt 0:00:23]} 6. Bg2 {[%emt 0:00:12]} Nc6 {[%emt 0:00:07]} 7. d3 {[%emt 0:00:22]} Nf6 {[%emt 0:00:05]} 8. Be3 {[%emt 0:00:59]} Nd5 {[%emt 0:00:11]} 9. Bxc5 {[%emt 0:01:07]} b6 {[%emt 0:00:03]} 10. e4 {[%emt 0:00:38]} Nc3 {[%emt 0:01:08]} 11. Qc2 {[%emt 0:00:41]} Nxe4 {[%emt 0:06:05]} 12. Ba3 {[%emt 0:00:40]} Nc5 {[%emt 0:00:01]} 13. O-O {[%emt 0:02:46]} O-O {[%emt 0:00:16]} 14. d4 {[%emt 0:00:30]} Bf5 {[%emt 0:00:02]} 15. Qd1 {[%emt 0:00:00]} Bd3 {[%emt 0:00:48]} 16. dxc5 {[%emt 0:00:34]} Bxc4 {[%emt 0:00:02]} 17. Re1 {[%emt 0:01:14]} b5 {[%emt 0:00:02]} 18. b3 {[%emt 0:00:27]} Qa5 {[%emt 0:00:57]} 19. bxc4 {[%emt 0:00:08]} Bxa1 {[%emt 0:00:02]} 20. Qxa1 {[%emt 0:00:05]} Qxa3 {[%emt 0:00:01]} 21. cxb5 {[%emt 0:00:00]} Nb4 {[%emt 0:00:02]} 22. Nd4 {[%emt 0:00:04]} Rad8 {[%emt 0:00:07]} 23. h4 {[%emt 0:00:09]} Qd3 {[%emt 0:00:02]} 24. Rd1 {[%emt 0:00:01]} Qc4 {[%emt 0:00:01]} 25. c6 {[%emt 0:00:01]} e5 {[%emt 0:00:02]} 26. Nf3 {[%emt 0:00:02]} Qxb5 {[%emt 0:00:01]} 27. Rxd8 {[%emt 0:00:02]} Rxd8 {[%emt 0:00:00]} 28. Nxe5 {[%emt 0:00:00]} Nc2 {[%emt 0:00:03]} 29. Qc3 {[%emt 0:00:02]} Nd4 {[%emt 0:00:01]} 30. c7 {[%emt 0:00:02]} Ne2+ {[%emt 0:00:03]} 31. Kh2 {[%emt 0:00:01]} Rc8 {[%emt 0:00:00]} 32. Qc2 {[%emt 0:00:03]} Qxe5 {[%emt 0:00:02]} 0-1

[Event "CCT Julius Baer-D3 2024"]
[Site "Online"]
[Date "2024.09.27"]
[Round "1.1"]
[White "Alekseenko, Kirill"]
[Black "Duda, Jan-Krzysztof"]
[Result "1-0"]
[ECO "B52"]
[WhiteElo "2621"]
[BlackElo "2749"]
[Annotator "TA"]
[PlyCount "87"]
[EventDate "2024.09.25"]
[EventType "swiss"]
[EventCountry "NET"]
[SourceTitle "playchess.com"]
[Source "ChessBase"]
[SourceQuality "1"]
[TimeControl "600+2"]

{[%evp 10,87,20,9,20,20,25,18,27,5,22,4,15,12,31,19,29,9,6,0,0,4,4,12,30,24,83,93,110,79,101,84,300,284,302,291,289,277,1044,983,1205,1111,1215,1215,1237,1204,939,406,999,985,1936,985,985,978,1112,1090,1056,1006,992,688,1220,1384,1546,1458,1686,1575,5381,5065,5365,5077,29981,29982,29983,29984,29987,29986,29991,29992,29992,29993]} 1. e4 {[%emt 0:00:03]} c5 {[%emt 0:00:04]} 2. Nf3 {[%emt 0:00:02]} d6 {[%emt 0:00:01]} 3. Bb5+ {[%emt 0:00:02]} Bd7 {[%emt 0:00:02]} 4. Bxd7+ {[%emt 0:00:39]} Nxd7 {[%emt 0:00:00]} 5. O-O {[%emt 0:00:04]} Ngf6 {[%emt 0:00:03]} 6. d3 {[%emt 0:00:08]} g6 {[%emt 0:00:33]} 7. c4 {[%emt 0:00:02]} Bg7 {[%emt 0:00:03]} 8. Nc3 {[%emt 0:00:01]} O-O {[%emt 0:00:03] The position is equal.} 9. h3 {[%emt 0:00:01]} a6 {[%emt 0:00:11]} 10. Be3 {[%emt 0:00:10]} Qc7 {[%emt 0:01:02]} 11. Qd2 {[%emt 0:00:08]} Qc6 {[%emt 0:00:19]} 12. a4 {[%emt 0:00:47]} e6 {[%emt 0:00:02]} 13. Bh6 {[%emt 0:00:17]} Ne5 {[%emt 0:02:01]} 14. Nxe5 {[%emt 0:00:17]} Bxh6 {[%emt 0:00:03]} 15. Qxh6 {[%emt 0:00:11]} dxe5 {[%emt 0:00:01]} 16. f4 {[%emt 0:00:19][%cal Bf2f4,Bf4f5,Bf5f6][%mdl 32]} Qd6 {[%emt 0:01:11]} 17. f5 $1 {[%emt 0:01:15]} Qxd3 {[%emt 0:00:31]} (17... Kh8 $11 {keeps the balance.}) 18. Rad1 $40 {[%emt 0:01:03][%mdl 128] Black is in trouble.} Qxc4 {[%emt 0:00:03]} 19. Qg5 {[%emt 0:00:28]} Nh5 {[%emt 0:01:03] [#]} (19... Nxe4 20. Nxe4 Qxe4 21. f6 $18) 20. f6 $1 {[%emt 0:00:33][%cal Og2g4] And now g4! would win.} Rfd8 $2 {[%emt 0:00:11] [#] Loses the game.} (20... h6 $16 21. Qxe5 (21. Qxh6 Rad8 $14) 21... b5) 21. g4 $1 $18 {[%emt 0:00:27]} Rxd1 {[%emt 0:00:56]} 22. Rxd1 {[%emt 0:00:04]} Nxf6 {[%emt 0:00:28]} (22... Nf4 23. Qh6 (23. Qxe5 Ne2+ 24. Kf2 Nxc3 $15) 23... Nxh3+ 24. Kh2 (24. Qxh3 h5 $18) (24. Qxh3 h5 $18)) 23. Qxf6 {[%emt 0:00:02][%cal Oh3h4] h4! is the strong threat.} b5 $2 {[%emt 0:00:02]} (23... Qb4 24. Rd2 (24. Qxe5 Qxb2 25. Qxc5 b5 $16) 24... c4 25. Qxe5 Qb6+ 26. Qd4 Qa5) 24. h4 {[%emt 0:01:20]} ({Stronger than} 24. Qxe5 b4 25. Nb1 Qc2 $11) 24... b4 {[%emt 0:01:27] [#]} 25. h5 $1 {[%emt 0:00:05]} gxh5 {[%emt 0:00:02]} 26. gxh5 {[%emt 0:00:13][%cal Oh5h6] White threatens h6! and mate.} h6 {[%emt 0:00:06] [#]} 27. Rf1 $1 {[%emt 0:00:47]} Qd4+ {[%emt 0:00:14]} 28. Kh1 {[%emt 0:00:12]} (28. Rf2 $142 Ra7 29. Qxh6 (29. Ne2 Qe3 $16) 29... bxc3 30. bxc3 Qxe4 31. Rg2+ Qxg2+ 32. Kxg2) 28... Ra7 {[%emt 0:00:07]} (28... Qe3 $142) 29. Rg1+ {[%emt 0:00:14]} Kf8 {[%emt 0:00:02]} 30. Rd1 {[%emt 0:00:24]} bxc3 {[%emt 0:00:06]} 31. Rxd4 {[%emt 0:00:01]} cxd4 {[%emt 0:00:03][%cal Bc5d4,Bd4d3][%mdl 32]} 32. bxc3 {[%emt 0:00:12][%mdl 4096] Endgame. KQ-KR} ({Weaker is} 32. Qxe5 Rd7 $14) 32... Rd7 {[%emt 0:00:01]} 33. Qxh6+ {[%emt 0:00:05]} ({Not} 33. Qxe5 d3 $11) 33... Ke8 {[%emt 0:00:04]} 34. Qh8+ {[%emt 0:00:12]} Ke7 {[%emt 0:00:01]} 35. Qxe5 {[%emt 0:00:01]} d3 {[%emt 0:00:02]} 36. Qg5+ {[%emt 0:00:02]} Kf8 {[%emt 0:00:02]} 37. Qd2 {[%emt 0:00:02]} e5 {[%emt 0:00:01]} 38. h6 {[%emt 0:00:07][%cal Bh5h6,Bh6h7][%mdl 32] h7 would kill now.} f5 {[%emt 0:00:04]} 39. Kg2 {[%emt 0:00:09]} fxe4 {[%emt 0:00:01]} 40. Kf2 {[%emt 0:00:02] White mates.} Rf7+ {[%emt 0:00:02]} 41. Ke3 {[%emt 0:00:03]} Rf4 {[%emt 0:00:03]} 42. Qg2 {[%emt 0:00:01]} Kf7 {[%emt 0:00:02]} 43. h7 {[%emt 0:00:02]} Rh4 {[%emt 0:00:02]} 44. Qg8+ {[%emt 0:00:01] Weighted Error Value: White=0.26 (precise) /Black=0.62.  Loses game:     	---       	Black=1      Mistake:       	---       	Black=2      Inaccurate:     	---       	Black=1      OK:         	White=6     	Black=9      Strong:       	White=3     	---} 1-0